fUST/lending_fUST_20251118
["ID","MTS","AMOUNT","RATE_DAILY","PERIOD"]
[394322686,1763449833904,-300.0,0.00039491,90]
[394322687,1763449833914,-300.0,0.00039491,90]
[394322688,1763449833923,-300.0,0.00039491,90]
[394322689,1763449833932,-300.0,0.00039491,90]
[394322690,1763449833940,-300.0,0.00039491,90]
[394322691,1763449833949,-310.03475671,0.0003964,15]
[394322692,1763449833958,-161.69,0.00039743,2]
[394322693,1763449833967,-1004.56024928,0.00040254,2]
[394322694,1763449833977,-2240.0,0.00040281,5]
[394322695,1763449833986,-181.9,0.00041162,2]
[394322696,1763449833995,-560.0,0.00041352,5]
[394322697,1763449834004,-560.0,0.00041353,5]
[394322698,1763449834013,-560.0,0.00041353,5]
[394322699,1763449834022,-399.0,0.00041353,5]
[394322700,1763449834031,-500.0,0.00041373,10]
[394322701,1763449834040,-500.0,0.00041373,10]
[394322702,1763449834049,-501.92499221,0.00041373,2]
[394322703,1763449834058,-156.23906122,0.00041373,10]
[394322704,1763449834067,-6815.80240778,0.00041389,3]
[394322705,1763449834076,-9946.0,0.000414,120]
[394322706,1763449834085,-150.0,0.000414,120]
[394322707,1763449834094,-317.46,0.000414,14]
[394322708,1763449834103,-616.39,0.000414,30]
[394322709,1763449834112,-2240.0,0.00041456,5]
[394322710,1763449834121,-1000.0,0.00041921,10]
[394322711,1763449834130,-1004.56024928,0.00042391,2]
[394322713,1763449834139,-1630.10071006,0.00042468,10]
[394322714,1763449834148,-194.41940989,0.00042581,2]
[394322715,1763449834157,-3135.0,0.00043242,5]
[394322716,1763449834166,-177.0,0.000434,120]
[394322717,1763449834175,-783.0,0.00044168,5]
[394322718,1763449834184,-693.0,0.00044169,5]
[394322719,1763449834193,-783.0,0.00044169,5]
[394322720,1763449834202,-2873.0,0.00044274,5]
[394322721,1763449834211,-1005.56480953,0.00044527,2]
[394322722,1763449834222,-259.8371662,0.00044642,2]
[394322723,1763449834232,-260.03735195,0.00044642,2]
[394322724,1763449834241,-204.0,0.000454,120]
[394322725,1763449834250,-4390.0,0.0004642,5]
[394322727,1763449834259,-3127.99780094,0.00046665,28]
[394322728,1763449834268,-640.0,0.00047087,30]
[394322729,1763449834277,-638.0,0.00047096,2]
[394322730,1763449834286,-640.0,0.00047102,7]
[394322731,1763449834295,-182.989,0.00047102,79]
[394322732,1763449834305,-640.0,0.00047102,120]
[394322733,1763449834314,-1097.0,0.00047176,5]
[394322735,1763449834323,-1097.0,0.00047177,5]
[394322736,1763449834332,-231.0,0.000474,120]
[394322737,1763449834341,-1904.79636761,0.0004818,2]
[394322738,1763449834351,-638.0,0.00048186,7]
[394322739,1763449834361,-6291.77,0.000482,14]
[394322740,1763449834370,-500.0,0.0004828,120]
[394322741,1763449834379,-500.0,0.0004828,30]
[394322742,1763449834388,-638.0,0.00048282,2]
[394322744,1763449834398,-500.0,0.00048284,120]
[394322745,1763449834407,-500.0,0.00048284,120]
[394322746,1763449834416,-638.0,0.00048285,120]
[394322747,1763449834425,-500.0,0.00048325,10]
[394322748,1763449834435,-638.0,0.00048374,2]
[394322749,1763449834444,-638.0,0.00048385,120]
[394322751,1763449834453,-317.46,0.000484,14]
[394322752,1763449834464,-638.0,0.00048431,30]
[394322753,1763449834473,-3407.90120389,0.00048445,4]
[394322754,1763449834486,-638.0,0.00048455,7]
[394322755,1763449834494,-616.39,0.000485,30]
[394322756,1763449834503,-638.0,0.00048606,120]
[394322757,1763449834512,-500.0,0.00048873,10]
[394322758,1763449834522,-638.0,0.00049299,7]
[394322759,1763449834531,-258.0,0.000494,120]
[394322760,1763449834540,-638.0,0.00049499,2]
[394322761,1763449834550,-638.0,0.00049713,7]
[394322762,1763449834560,-6146.0,0.00049832,5]
[394322763,1763449834569,-640.0,0.00049869,30]
[394322764,1763449834578,-500.0,0.00049998,120]
[394322765,1763449834587,-500.0,0.00049998,30]
[394322766,1763449834596,-167.135554,0.0005,20]
[394322767,1763449834606,-167.135554,0.0005,3]
[394322768,1763449834615,-153.69344454,0.0005,120]
[394322769,1763449834624,-640.0,0.00050086,2]
[394322770,1763449834633,-638.0,0.0005028,2]
[394322771,1763449834642,-640.0,0.00050306,7]
[394322772,1763449834651,-271.0,0.00050388,10]
[394322773,1763449834660,-1536.0,0.00050389,15]
[394322774,1763449834669,-275.08034466,0.00050465,10]
[394322775,1763449834678,-501.09463132,0.00050527,7]
[394322776,1763449834687,-500.0,0.00050969,10]
[394322777,1763449834695,-638.0,0.00050993,2]
[394322778,1763449834704,-640.0,0.00051039,2]
[394322779,1763449834713,-640.0,0.00051066,2]
[394322780,1763449834722,-638.0,0.00051354,2]
[394322781,1763449834731,-224.57867344,0.000514,120]
[394322782,1763449834740,-1000.0,0.00051517,10]
[394322783,1763449834750,-640.0,0.00051634,7]
[394322784,1763449834759,-6291.77,0.000517,14]
[394322785,1763449834768,-399.92653727,0.00051746,2]
[394322786,1763449834777,-638.0,0.00051986,7]
[394322787,1763449834786,-317.46,0.00052,14]
[394322788,1763449834795,-500.0,0.00052064,10]
[394322789,1763449834804,-1904.79636757,0.0005256,2]
[394322790,1763449834813,-616.39,0.000526,30]
[394322791,1763449834822,-501.22334387,0.00052989,120]
[394322792,1763449834831,-1950.0,0.00053495,10]
[394322793,1763449834839,-2008.0,0.0005382,15]
[394322794,1763449834851,-3127.99780094,0.00054612,28]
[394322795,1763449834860,-500.0,0.00054794,120]
[394322796,1763449834869,-3407.90120389,0.0005498,4]
[394322797,1763449834878,-500.0,0.00054989,120]
[394322798,1763449834887,-500.0,0.00054989,30]
[394322799,1763449834896,-500.0,0.00055342,120]
[394322800,1763449834907,-440.4335205,0.00055442,30]
[394322801,1763449834916,-500.0,0.0005589,120]
[394322802,1763449834926,-500.0,0.00055899,120]
[394322803,1763449834934,-500.0,0.00055899,30]
[394322804,1763449834943,-180.57566238,0.000559,67]
[394322805,1763449834952,-388.0,0.00055963,30]
[394322806,1763449834961,-6815.80240778,0.00055963,4]
[394322807,1763449834970,-500.0,0.00055972,120]
[394322808,1763449834979,-500.0,0.00055972,120]
[394322809,1763449834988,-500.0,0.00055972,120]
[394322810,1763449834997,-500.0,0.00055972,120]
[394322811,1763449835006,-605.20770695,0.00055972,120]
[394322812,1763449835015,-500.0,0.00055972,30]
[394322813,1763449835025,-500.0,0.00055972,30]
[394322814,1763449835033,-500.0,0.00055972,30]
[394322815,1763449835042,-500.0,0.00055972,30]
[394322816,1763449835052,-1000.0,0.00055972,2]
[394322817,1763449835062,-1000.0,0.00055972,2]
[394322818,1763449835071,-1000.0,0.00055972,2]
[394322819,1763449835080,-1000.0,0.00055972,2]
[394322820,1763449835089,-1000.0,0.00055972,2]
[394322821,1763449835098,-1000.0,0.00055972,2]
[394322822,1763449835107,-1000.0,0.00055972,2]
[394322823,1763449835117,-1000.0,0.00055972,2]
[394322824,1763449835127,-1000.0,0.00055972,2]
[394322825,1763449835135,-47710.6168545,0.00055973,4]
[394322826,1763449835144,-1000.0,0.00055982,2]
[394322827,1763449835154,-1000.0,0.00055982,2]
[394322828,1763449835163,-1000.0,0.00055982,2]
[394322829,1763449835172,-1000.0,0.00055982,2]
[394322830,1763449835181,-1000.0,0.00055982,2]
[394322831,1763449835193,-1000.0,0.00055982,2]
[394322832,1763449835202,-916.83191706,0.00055982,2]
[394322833,1763449835210,-35526.41210334,0.00055983,2]
[394322834,1763449835225,-2600.0,0.00055983,2]
[394322835,1763449835236,-2750.0,0.00055983,2]
[394322837,1763449835750,242.62995568,0.000253,2]
[394322838,1763449835782,242.62995568,0.0002999,2]
[394322845,1763449839147,-242.62995568,0.0003468,2]
[394322846,1763449839157,-500.0,0.00038817,15]
[394322847,1763449839167,-500.0,0.00038817,15]
[394322848,1763449839177,-500.0,0.00038817,15]
[394322849,1763449839187,-500.0,0.00038817,15]
[394322850,1763449839196,-500.0,0.00038817,15]
[394322851,1763449839208,-500.0,0.00038817,15]
[394322852,1763449839218,-500.0,0.00038817,15]
[394322853,1763449839231,-500.0,0.00038817,15]
[394322854,1763449839241,-500.0,0.00038817,15]
[394322855,1763449839251,-500.0,0.00038817,15]
[394322856,1763449839261,-500.0,0.00038817,15]
[394322857,1763449839271,-500.0,0.00038817,15]
[394322858,1763449839282,-500.0,0.00038817,15]
[394322859,1763449839293,-500.0,0.00038817,15]
[394322860,1763449839303,-500.0,0.00038817,15]
[394322861,1763449839313,-500.0,0.00038817,15]
[394322862,1763449839323,-500.0,0.00038817,15]
[394322863,1763449839333,-245.19850722,0.00038817,15]
[394322864,1763449839343,-500.0,0.00038817,15]
[394322865,1763449839353,-500.0,0.00038817,15]
[394322866,1763449839363,-500.0,0.00038817,15]
[394322867,1763449839373,-500.0,0.00038817,15]
[394322868,1763449839383,-500.0,0.00038817,15]
[394322869,1763449839393,-500.0,0.00038817,15]
[394322870,1763449839403,-500.0,0.00038817,15]
[394322871,1763449839413,-500.0,0.00038817,15]
[394322872,1763449839422,-650.0,0.00038817,15]
[394322873,1763449839432,-500.0,0.00038817,15]
[394322874,1763449839441,-500.0,0.00038817,15]
[394322875,1763449839454,-500.0,0.00038817,15]
[394322876,1763449839463,-500.0,0.00038817,15]
[394322877,1763449839473,-500.0,0.00038817,15]
[394322878,1763449839486,-500.0,0.00038817,15]
[394322879,1763449839496,-500.0,0.00038817,15]
[394322880,1763449839505,-500.0,0.00038817,15]
[394322881,1763449839514,-500.0,0.00038817,15]
[394322882,1763449839525,-500.0,0.00038817,15]
[394322883,1763449839534,-500.0,0.00038817,15]
[394322884,1763449839543,-500.0,0.00038817,15]
[394322885,1763449839555,-500.0,0.00038817,15]
[394322886,1763449839565,-474.01162676,0.00038817,15]
[394322887,1763449839574,-500.0,0.00038817,15]
[394322888,1763449839584,-500.0,0.00038817,15]
[394322889,1763449839593,-500.0,0.00038817,15]
[394322890,1763449839602,-500.0,0.00038817,15]
[394322891,1763449839611,-500.0,0.00038817,15]
[394322892,1763449839620,-500.0,0.00038817,15]
[394322893,1763449839630,-500.0,0.00038817,15]
[394322894,1763449839639,-500.0,0.00038817,15]
[394322895,1763449839649,-500.0,0.00038817,15]
[394322896,1763449839658,-500.0,0.00038817,15]
[394322897,1763449839669,-500.0,0.00038817,15]
[394322898,1763449839679,-500.0,0.00038817,15]
[394322899,1763449839688,-500.0,0.00038817,7]
[394322900,1763449839697,-500.0,0.00038817,15]
[394322901,1763449839707,-500.0,0.00038817,15]
[394322902,1763449839716,-500.0,0.00038817,15]
[394322903,1763449839727,-500.0,0.00038817,15]
[394322904,1763449839736,-500.0,0.00038817,15]
[394322905,1763449839745,-500.0,0.00038817,15]
[394322906,1763449839755,-500.0,0.00038817,15]
[394322907,1763449839764,-500.0,0.00038817,15]
[394322908,1763449839773,-500.0,0.00038817,15]
[394322909,1763449839783,-500.0,0.00038817,15]
[394322910,1763449839792,-650.0,0.00038817,15]
[394322911,1763449839802,-500.0,0.00038817,15]
[394322912,1763449839812,-367.50155287,0.00038817,15]
[394322913,1763449839821,-500.0,0.00038817,15]
[394322914,1763449839830,-500.0,0.00038817,15]
[394322915,1763449839839,-650.0,0.00038817,15]
[394322916,1763449839848,-500.0,0.00038817,15]
[394322917,1763449839858,-500.0,0.00038817,15]
[394322918,1763449839868,-500.0,0.00038817,15]
[394322919,1763449839878,-500.0,0.00038817,15]
[394322920,1763449839888,-500.0,0.00038817,15]
[394322921,1763449839898,-500.0,0.00038817,15]
[394322922,1763449839907,-500.0,0.00038817,15]
[394322923,1763449839917,-500.0,0.00038817,15]
[394322924,1763449839927,-500.0,0.00038817,15]
[394322925,1763449839936,-500.0,0.00038817,15]
[394322926,1763449839945,-500.0,0.00038817,15]
[394322927,1763449839955,-500.0,0.00038817,7]
[394322928,1763449839964,-500.0,0.00038817,15]
[394322929,1763449839973,-500.0,0.00038817,15]
[394322930,1763449839984,-500.0,0.00038817,15]
[394322931,1763449839993,-569.58883284,0.00038817,15]
[394322932,1763449840005,-500.0,0.00038817,15]
[394322933,1763449840014,-500.0,0.00038817,15]
[394322934,1763449840023,-500.0,0.00038817,15]
[394322935,1763449840032,-500.0,0.00038817,15]
[394322936,1763449840042,-500.0,0.00038817,7]
[394322937,1763449840051,-500.0,0.00038817,7]
[394322938,1763449840059,-500.0,0.00038817,7]
[394322939,1763449840069,-500.0,0.00038817,7]
[394322940,1763449840078,-500.0,0.00038817,7]
[394322941,1763449840087,-242.62995568,0.0003937,2]
[394322942,1763449840096,-500.0,0.00041399,120]
[394322943,1763449840105,-242.87258564,0.0004406,2]
[394322944,1763449840115,-500.0,0.00048186,120]
[394322945,1763449840124,-3750.21259419,0.00055927,2]
[394322946,1763449840133,-1254.40705398,0.00055983,2]
[394322951,1763449841505,1761.71966244,0.00024953,10]
[394322952,1763449841529,1846.9539366,0.00024953,10]
[394322958,1763449844168,-1391.32640096,0.00024953,10]
[394322959,1763449844178,-289.93229305,0.00048279,120]
[394322960,1763449844188,-565.34780213,0.00055892,2]
[394322961,1763449844198,-3683.65,0.00055973,10]
[394322962,1763449844207,-11404.75885739,0.00055983,2]
[394322970,1763449846756,-861.50289935,0.00055983,2]
[394322971,1763449846834,-67948.51476314,0.00055983,2]
[394322972,1763449846846,-6219.33999992,0.00055983,2]
[394323015,1763450436938,-150.0,0.0002589,2]
[394323016,1763450436968,-300.0,0.00027105,30]
[394323017,1763450436998,-300.0,0.00027105,30]
[394323018,1763450437028,-300.0,0.00027105,30]
[394323019,1763450437048,-150.0,0.00027563,2]
[394323020,1763450437060,-300.0,0.00027563,2]
[394323021,1763450437071,-300.0,0.00027563,2]
[394323022,1763450437086,-300.0,0.00027563,2]
[394323023,1763450437098,-339.5619507,0.00027563,2]
[394323024,1763450437107,-177.0,0.0002789,2]
[394323025,1763450437116,-383.4380493,0.00028894,2]
[394323031,1763450623403,-637.4396871,0.00024953,10]
[394323032,1763450625739,-307.09728476,0.00024953,10]
[394323103,1763450791137,-286.1003139,0.00024703,10]
[394323242,1763450853111,-1374.91251765,0.00024211,10]
[394323246,1763450877944,-263.39734293,0.00017999,2]
[394323247,1763450880098,-936.60265707,0.00017999,2]
[394323248,1763450880121,-1048.25041885,0.00018,2]
[394323274,1763450922735,-2090.94520086,0.00015,2]
[394323275,1763450924395,-300.0,0.00015,2]
[394323278,1763450951093,-273.91193308,0.00015,2]
[394323279,1763450951113,-300.0,0.00017999,2]
[394323280,1763450951132,-150.0,0.00018,2]
[394323281,1763450951154,-15994.91591268,0.00018,2]
[394323282,1763450951173,-6966.97190601,0.00018,2]
[394323283,1763450951191,-175.0,0.00019639,2]
[394323284,1763450951211,-420.0,0.00019639,2]
[394323285,1763450951230,-177.0,0.0002,2]
[394323286,1763450951249,-280.0,0.00021428,2]
[394323287,1763450951269,-204.0,0.00022,2]
[394323288,1763450951287,-840.30028909,0.00022679,7]
[394323291,1763450952222,-650.84061821,0.00022679,7]
[394323292,1763450952249,-231.0,0.00024,2]
[394323293,1763450952270,-27778.86052847,0.00024142,2]
[394323294,1763450952291,-3625.08748235,0.00024211,10]
[394323295,1763450952313,-500.0,0.00024455,2]
[394323296,1763450952335,-500.0,0.00024455,2]
[394323297,1763450952356,-305.02205636,0.00024455,2]
[394323298,1763450952377,-414.73840301,0.00024455,2]
[394323303,1763450961089,-197.2960427,0.00018,2]
[394323304,1763450961111,-231.0,0.0002376,2]
[394323305,1763450961135,-165.55736854,0.00024445,10]
[394323306,1763450966155,-4118.99263146,0.00024445,10]
[394323307,1763450966176,-85.26159699,0.00024455,2]
[394323308,1763450966302,-500.0,0.00024455,2]
[394323309,1763450966324,-500.0,0.00024455,2]
[394323310,1763450966346,-500.0,0.00024455,2]
[394323311,1763450966367,-500.0,0.00024455,2]
[394323312,1763450966389,-500.0,0.00024455,2]
[394323313,1763450966410,-169.3400172,0.00024455,2]
[394323314,1763450969137,-3570.46,0.00024445,10]
[394323315,1763450969158,-330.6599828,0.00024455,2]
[394323316,1763450969184,-500.0,0.00024455,2]
[394323317,1763450969207,-500.0,0.00024455,2]
[394323318,1763450969228,-525.55682166,0.00024455,2]
[394323319,1763450969252,-500.0,0.00024455,2]
[394323320,1763450969273,-467.1701812,0.00024455,2]
[394323321,1763450969293,-500.0,0.00024455,2]
[394323322,1763450969314,-377.839211,0.00024455,2]
[394323323,1763450969334,-500.0,0.00024455,2]
[394323324,1763450969355,-500.0,0.00024455,2]
[394323325,1763450969379,-500.0,0.00024455,2]
[394323326,1763450969401,-500.0,0.00024455,2]
[394323327,1763450969422,-500.0,0.00024455,2]
[394323328,1763450969444,-500.0,0.00024455,2]
[394323329,1763450969466,-500.0,0.00024455,2]
[394323330,1763450969488,-500.0,0.00024455,2]
[394323331,1763450969509,-500.0,0.00024455,2]
[394323332,1763450969530,-500.0,0.00024455,2]
[394323333,1763450969557,-500.0,0.00024455,2]
[394323334,1763450969578,-500.0,0.00024455,2]
[394323335,1763450969600,-500.0,0.00024455,2]
[394323336,1763450969621,-500.0,0.00024455,2]
[394323337,1763450969643,-550.0,0.00024455,2]
[394323338,1763450969664,-500.0,0.00024455,2]
[394323339,1763450969687,-500.0,0.00024455,2]
[394323340,1763450969709,-500.0,0.00024455,2]
[394323341,1763450969730,-500.0,0.00024455,2]
[394323342,1763450969750,-503.18797775,0.00024455,2]
[394323343,1763450969772,-500.0,0.00024455,2]
[394323344,1763450969794,-500.0,0.00024455,2]
[394323345,1763450969819,-500.0,0.00024455,2]
[394323346,1763450969847,-500.0,0.00024455,2]
[394323347,1763450969868,-500.0,0.00024455,2]
[394323348,1763450969891,-500.0,0.00024455,2]
[394323349,1763450969912,-500.0,0.00024455,2]
[394323350,1763450969935,-500.0,0.00024455,2]
[394323351,1763450969955,-500.0,0.00024455,2]
[394323352,1763450969976,-500.0,0.00024455,2]
[394323353,1763450970002,-500.0,0.00024455,2]
[394323354,1763450970023,-500.0,0.00024455,2]
[394323355,1763450970044,-600.0,0.00024455,2]
[394323356,1763450970064,-500.0,0.00024455,2]
[394323357,1763450970087,-310.73999349,0.00024455,2]
[394323358,1763450970111,-500.0,0.00024455,2]
[394323359,1763450970138,-500.0,0.00024455,2]
[394323360,1763450970165,-500.0,0.00024455,2]
[394323361,1763450970195,-500.0,0.00024455,2]
[394323362,1763450970219,-500.0,0.00024455,2]
[394323363,1763450970249,-500.0,0.00024455,2]
[394323364,1763450970276,-500.0,0.00024455,2]
[394323365,1763450970301,-500.0,0.00024455,2]
[394323366,1763450970329,-338.05157067,0.00024455,2]
[394323367,1763450970354,-500.0,0.00024455,2]
[394323368,1763450970379,-500.0,0.00024455,2]
[394323369,1763450970406,-500.0,0.00024455,2]
[394323370,1763450970433,-500.0,0.00024455,2]
[394323371,1763450970459,-500.0,0.00024455,2]
[394323372,1763450970486,-500.0,0.00024455,2]
[394323373,1763450970513,-500.0,0.00024455,2]
[394323374,1763450970536,-500.0,0.00024455,2]
[394323375,1763450970565,-500.0,0.00024455,2]
[394323376,1763450970589,-500.0,0.00024455,2]
[394323377,1763450970613,-500.0,0.00024455,2]
[394323378,1763450970639,-500.0,0.00024455,2]
[394323379,1763450970662,-500.0,0.00024455,2]
[394323380,1763450970686,-500.0,0.00024455,2]
[394323381,1763450970712,-500.0,0.00024455,2]
[394323382,1763450970738,-500.0,0.00024455,2]
[394323383,1763450970765,-500.0,0.00024455,2]
[394323384,1763450970793,-500.0,0.00024455,2]
[394323385,1763450970818,-500.0,0.00024455,2]
[394323386,1763450970848,-500.0,0.00024455,2]
[394323387,1763450970873,-500.0,0.00024455,2]
[394323388,1763450970901,-500.0,0.00024455,2]
[394323389,1763450970926,-500.0,0.00024455,2]
[394323390,1763450970948,-500.0,0.00024455,2]
[394323391,1763450970977,-500.0,0.00024455,2]
[394323392,1763450971003,-500.0,0.00024455,2]
[394323393,1763450971031,-500.0,0.00024455,2]
[394323394,1763450971057,-500.0,0.00024455,2]
[394323395,1763450971083,-56.73040375,0.00024455,2]
[394323396,1763450971227,-443.26959625,0.00024455,2]
[394323397,1763450971252,-55.54588752,0.00024455,2]
[394323402,1763451007952,3431.82115784,0.00019,10]
[394323432,1763451031608,-500.0,0.00018,2]
[394323434,1763451031618,-551.77850472,0.00018548,2]
[394323436,1763451031628,-808.28639306,0.00023402,30]
[394323438,1763451031639,-541.11646766,0.00023402,30]
[394323442,1763451031731,-744.26349173,0.00023402,30]
[394323443,1763451031744,-45068.99800002,0.00023402,30]
[394323477,1763451037569,-500.0,0.00023401,2]
[394323478,1763451037578,-500.0,0.00023401,2]
[394323480,1763451037588,-500.0,0.00023401,2]
[394323481,1763451037597,-218.57446458,0.00023401,2]
[394323482,1763451037606,-500.0,0.00023401,2]
[394323483,1763451037615,-500.0,0.00023401,2]
[394323484,1763451037625,-500.0,0.00023401,2]
[394323485,1763451037634,-500.0,0.00023401,2]
[394323486,1763451037643,-500.0,0.00023401,2]
[394323487,1763451037654,-500.0,0.00023401,2]
[394323488,1763451037663,-541.98213456,0.00023401,2]
[394323489,1763451037673,-1057.45242579,0.00023401,2]
[394323490,1763451037682,-500.0,0.00023401,2]
[394323491,1763451037692,-500.0,0.00023401,2]
[394323492,1763451037702,-500.0,0.00023401,2]
[394323493,1763451037724,-500.0,0.00023401,2]
[394323494,1763451037733,-1057.45242579,0.00023401,2]
[394323495,1763451037744,-500.0,0.00023401,2]
[394323496,1763451037753,-500.0,0.00023401,2]
[394323497,1763451037763,-500.0,0.00023401,2]
[394323498,1763451037772,-500.0,0.00023401,2]
[394323499,1763451037782,-500.0,0.00023401,2]
[394323500,1763451037791,-500.0,0.00023401,2]
[394323501,1763451037801,-500.0,0.00023401,2]
[394323502,1763451037810,-217.33968419,0.00023401,2]
[394323503,1763451037820,-1057.45242579,0.00023401,2]
[394323504,1763451037830,-500.0,0.00023401,2]
[394323505,1763451037840,-500.0,0.00023401,2]
[394323506,1763451037850,-500.0,0.00023401,2]
[394323507,1763451037861,-500.0,0.00023401,2]
[394323508,1763451037872,-500.0,0.00023401,2]
[394323509,1763451037882,-500.0,0.00023401,2]
[394323510,1763451037891,-1057.45242579,0.00023401,2]
[394323511,1763451037901,-500.0,0.00023401,2]
[394323512,1763451037911,-500.0,0.00023401,2]
[394323513,1763451037921,-500.0,0.00023401,2]
[394323514,1763451037930,-500.0,0.00023401,2]
[394323515,1763451037941,-500.0,0.00023401,2]
[394323516,1763451037950,-1057.45242579,0.00023401,2]
[394323517,1763451037960,-500.0,0.00023401,2]
[394323518,1763451037972,-500.0,0.00023401,2]
[394323519,1763451037982,-500.0,0.00023401,2]
[394323520,1763451037991,-500.0,0.00023401,2]
[394323521,1763451038000,-1057.45242579,0.00023401,2]
[394323522,1763451038010,-500.0,0.00023401,2]
[394323523,1763451038019,-500.0,0.00023401,2]
[394323524,1763451038029,-500.0,0.00023401,2]
[394323525,1763451038038,-500.0,0.00023401,2]
[394323526,1763451038047,-500.0,0.00023401,2]
[394323527,1763451038057,-500.0,0.00023401,2]
[394323528,1763451038067,-1057.45242579,0.00023401,2]
[394323529,1763451038076,-500.0,0.00023401,2]
[394323530,1763451038086,-631.08270058,0.00023401,2]
[394323531,1763451038096,-500.0,0.00023401,2]
[394323532,1763451038105,-500.0,0.00023401,2]
[394323533,1763451038114,-500.0,0.00023401,2]
[394323534,1763451038125,-500.0,0.00023401,2]
[394323535,1763451038135,-500.0,0.00023401,2]
[394323536,1763451038144,-1057.45242579,0.00023401,2]
[394323537,1763451038153,-500.0,0.00023401,2]
[394323538,1763451038163,-500.0,0.00023401,2]
[394323539,1763451038172,-500.0,0.00023401,2]
[394323540,1763451038182,-500.0,0.00023401,2]
[394323541,1763451038191,-500.0,0.00023401,2]
[394323542,1763451038201,-1057.45242579,0.00023401,2]
[394323543,1763451038210,-500.0,0.00023401,2]
[394323544,1763451038220,-500.0,0.00023401,2]
[394323545,1763451038230,-500.0,0.00023401,2]
[394323546,1763451038240,-500.0,0.00023401,2]
[394323547,1763451038249,-1057.45242579,0.00023401,2]
[394323548,1763451038259,-500.0,0.00023401,2]
[394323549,1763451038268,-500.0,0.00023401,2]
[394323550,1763451038277,-500.0,0.00023401,2]
[394323551,1763451038287,-500.0,0.00023401,2]
[394323552,1763451038297,-500.0,0.00023401,2]
[394323553,1763451038307,-1057.45242579,0.00023401,2]
[394323554,1763451038316,-500.0,0.00023401,2]
[394323555,1763451038326,-500.0,0.00023401,2]
[394323556,1763451038335,-500.0,0.00023401,2]
[394323557,1763451038347,-500.0,0.00023401,2]
[394323558,1763451038357,-500.0,0.00023401,2]
[394323559,1763451038367,-500.0,0.00023401,2]
[394323560,1763451038377,-500.0,0.00023401,2]
[394323561,1763451038387,-1057.45242579,0.00023401,2]
[394323562,1763451038397,-500.0,0.00023401,2]
[394323563,1763451038407,-598.9061775,0.00023401,2]
[394323564,1763451038417,-500.0,0.00023401,2]
[394323565,1763451038427,-500.0,0.00023401,2]
[394323566,1763451038550,-1057.45242579,0.00023401,2]
[394323567,1763451038565,-500.0,0.00023401,2]
[394323568,1763451038575,-500.0,0.00023401,2]
[394323569,1763451038585,-500.0,0.00023401,2]
[394323570,1763451038596,-500.0,0.00023401,2]
[394323571,1763451038605,-500.0,0.00023401,2]
[394323572,1763451038615,-500.0,0.00023401,2]
[394323573,1763451038625,-1057.45242579,0.00023401,2]
[394323574,1763451038634,-500.0,0.00023401,2]
[394323575,1763451038644,-500.0,0.00023401,2]
[394323576,1763451038652,-500.0,0.00023401,2]
[394323577,1763451038662,-414.36589945,0.00023401,2]